{"text_format":"1","workbook":"xlsx","n_sheets":2,"sheets":["FOOD SERVICE","Data Lists"],"not_rendered":{"charts":0,"images":0,"macros":0,"external_links":1,"defined_names":7,"comments":0,"pivot_tables":0},"unopened":[],"bounds":{"document_bytes":16777216,"sheet_cells":100000,"rows_first":2000,"rows_last":500,"rows_between":2000,"halvings":0,"cell_chars":16384,"cell_head_chars":4096},"cells_cut":0,"cells_raw":0,"read":"whole","date_system":"1900"}

{"sheet":"FOOD SERVICE","index":0,"n_rows":52,"n_cols":7,"rows_kept":52,"cut":false,"hidden":false,"merged":[[51,2,51,4],[36,1,36,2],[32,1,32,2],[33,1,33,2],[34,1,34,2],[35,1,35,2],[37,1,37,2],[38,1,38,2],[39,1,39,2],[50,2,50,4],[26,1,26,2],[27,1,27,2],[28,1,28,2],[29,1,29,2],[30,1,30,2],[31,1,31,2],[20,1,20,2],[21,1,21,2],[22,1,22,2],[23,1,23,2],[24,1,24,2],[25,1,25,2],[13,4,13,5],[15,2,15,6],[16,2,16,3],[17,2,17,6],[18,2,18,5],[19,1,19,2],[0,1,0,6],[1,1,1,6],[5,4,5,6],[9,2,9,6],[10,2,10,6],[12,2,12,6]]}
[null,"Jamestown Community College - Jamestown, Olean, Dunkirk"]
[null,"Purchase Requistion for Food Service"]
[]
[null,"Purchase Order Type"]
[null,"Today's Date",null,"Fiscal Year","2019-2020","Delivery Date"]
[null,"Vendor ID",null,"Vendor Name"]
[]
[null,"Vendor address","Street #1","Street #2","City","State","Zip Code"]
[null,"Vendor Contact"]
[null,"Vendor email"]
[null,"Vendor Fax #"]
[]
[null,"Requestor Name"]
[null,"Ship To Campus",null,null,"Campus Mail Delivery Location"]
[]
[null,"Attention To:"]
[null,"Event Name"]
[null,"Documents Notes"]
[null,"Special Notes"]
["Line","Catalog # and Description",null,"Unit of Measure","Quantity","Unit Price","Extension"]
[1,null,null,null,null,null,{"$f":"ROUND((E21*F21),2)","v":0}]
[2,null,null,null,null,null,{"$f":"ROUND((E22*F22),2)","v":0}]
[3,null,null,null,null,null,0]
[4,null,null,null,null,null,0]
[5,null,null,null,null,null,0]
[6,null,null,null,null,null,0]
[7,null,null,null,null,null,0]
[8,null,null,null,null,null,0]
[9,null,null,null,null,null,0]
[10,null,null,null,null,null,0]
[11,null,null,null,null,null,0]
[12,null,null,null,null,null,0]
[13]
[14]
[15,null,null,null,null,null,0]
[16,null,null,null,null,null,0]
[17,null,null,null,null,null,0]
[18,null,null,null,null,null,0]
[19,"Delivery",null,null,null,null,0]
[20,"Tip",null,null,null,null,0]
[null,null,null,null,null,"TOTAL",{"$f":"SUM(G21:G40)","v":0}]
[null,"Budget Distribution"]
[null,"Fund","Org","Account","Program","Amount"]
[null,null,null,null,null,0]
[]
[]
[]
[]
[null,null,null,null,"TOTAL",{"$f":"SUM(F44:F48)","v":0}]
[]
[null,"Submitted by:"]
[null,"Approved by:"]

{"sheet":"Data Lists","index":1,"n_rows":6,"n_cols":11,"rows_kept":6,"cut":false,"hidden":false,"merged":[]}
["PO Type","FY","Vendor","Campus","Ship To Bldg","Unit of Measure","Event","Fund","Org","Account","Org Responsibility"]
[null,"2019-2020",null,"Jamestown","COCE","Each","Commodity",1000]
["Blanket","2020-2021",null,"Olean","MTI","Person","Service"]
["Regular","2021-2022",null,"Dunkirk","RTPI","Day"]
["Confirming",null,null,"Warren","CATT","Week"]
[null,null,null,null,"NCEC"]